bitfinex/quotes_BTCUSD_20241223
["timestamp","ask_amount","ask_price","bid_price","bid_amount"]
[1734915013095,0.73827793,94730.0,94729.0,8e-07]
[1734915015007,0.63827793,94730.0,94729.0,8e-07]
[1734915016784,0.32049132,94730.0,94729.0,8e-07]
[1734915018284,0.31249132,94730.0,94729.0,8e-07]
[1734915018646,0.31949132,94730.0,94729.0,8e-07]
[1734915018930,0.31249132,94730.0,94729.0,8e-07]
[1734915019337,0.34149132,94730.0,94729.0,8e-07]
[1734915019543,0.33549132,94730.0,94729.0,8e-07]
[1734915020406,0.12436532,94730.0,94714.0,0.05018071]
[1734915020610,0.21113,94728.0,94714.0,0.05018071]
[1734915020744,0.211152,94719.0,94714.0,0.05018071]
[1734915021180,0.211139,94724.0,94714.0,0.05018071]
[1734915021551,0.00405692,94730.0,94727.0,0.15]
[1734915021752,0.21107,94755.0,94729.0,0.15]
[1734915021959,0.211075,94753.0,94730.0,0.190514]
[1734915022335,0.211159,94715.0,94714.0,0.001]
[1734915022537,0.12843416,94740.0,94680.0,0.100171]
[1734915022538,0.211175,94708.0,94707.0,0.0213273]
[1734915022647,0.12843416,94725.0,94688.0,0.15]
[1734915022648,0.211188,94703.0,94688.0,0.15]
[1734915022848,0.20583416,94725.0,94699.0,0.02088972]
[1734915022849,0.00131989,94702.0,94699.0,0.02088972]
[1734915023055,0.12843416,94710.0,94680.0,0.000171]
[1734915023056,0.211175,94708.0,94680.0,0.000171]
[1734915023262,0.023,94704.0,94680.0,0.000171]
[1734915023460,0.211215,94690.0,94684.0,0.28360524]
[1734915023669,0.023,94687.0,94684.0,0.28360524]
[1734915023871,0.023,94685.0,94684.0,0.28414603]
[1734915024524,0.023,94685.0,94684.0,0.00054079]
[1734915024716,0.211207,94694.0,94684.0,0.00054079]
[1734915024996,0.023,94699.0,94684.0,0.00054079]
[1734915025150,0.023,94700.0,94685.0,0.0767]
[1734915025532,0.023,94700.0,94699.0,0.005]
[1734915025851,0.023,94700.0,94687.0,0.0458]
[1734915026052,0.211188,94703.0,94687.0,0.0458]
[1734915026053,0.211195,94699.0,94687.0,0.0458]
[1734915026274,0.214195,94699.0,94687.0,0.0458]
[1734915026453,0.211199,94697.0,94687.0,0.0458]
[1734915027294,0.023,94700.0,94687.0,0.0458]
[1734915027503,0.211195,94699.0,94687.0,0.0458]
[1734915028106,0.211195,94699.0,94694.0,0.02142449]
[1734915028312,0.211177,94708.0,94694.0,0.02142449]
[1734915028473,0.003,94699.0,94695.0,0.155518]
[1734915029587,0.211177,94708.0,94695.0,0.155518]
[1734915030212,0.211177,94708.0,94694.0,0.02142449]
[1734915030428,0.211177,94708.0,94695.0,0.11189]
[1734915030843,0.003,94699.0,94695.0,0.11189]
[1734915031601,0.003,94699.0,94694.0,0.02142449]
[1734915032001,0.00131999,94700.0,94694.0,0.02142449]
[1734915032213,0.211192,94701.0,94694.0,0.02142449]
[1734915032378,0.211192,94701.0,94695.0,0.001]
[1734915032612,0.211192,94701.0,94694.0,0.02142449]
[1734915033185,0.003,94699.0,94694.0,0.02142449]
[1734915033357,0.211192,94701.0,94694.0,0.02142449]
[1734915033559,0.211195,94699.0,94694.0,0.02142449]
[1734915033922,0.211192,94701.0,94694.0,0.02142449]
[1734915034641,0.211195,94699.0,94694.0,0.02142449]
[1734915034958,0.00131999,94698.0,94694.0,0.02142449]
[1734915035201,0.211199,94697.0,94694.0,0.02142449]
[1734915035393,0.211204,94695.0,94694.0,0.02142449]
[1734915035891,0.211204,94695.0,94677.0,0.048171]
[1734915035892,0.211214,94691.0,94687.0,0.02140848]
[1734915036035,0.211217,94689.0,94687.0,0.02140848]
[1734915036237,0.211214,94691.0,94687.0,0.02140848]
[1734915036437,0.21119,94702.0,94687.0,0.02140848]
[1734915036781,0.001,94695.0,94687.0,0.02140848]
[1734915037020,0.023,94700.0,94687.0,0.02140848]
[1734915037457,0.023,94700.0,94687.0,0.02340848]
[1734915038221,0.211183,94705.0,94687.0,0.02340848]
[1734915038222,0.023,94709.0,94688.0,0.21122]
[1734915038422,0.023,94707.0,94688.0,0.42244]
[1734915038600,0.023,94705.0,94688.0,0.42244]
[1734915038802,0.211157,94716.0,94687.0,0.02140848]
[1734915039029,0.001,94695.0,94694.0,0.211205]
[1734915039213,0.00131993,94707.0,94694.0,0.211205]
[1734915039781,0.007,94707.0,94694.0,0.211205]
[1734915039921,0.00131993,94707.0,94694.0,0.211205]
[1734915040153,0.001,94695.0,94689.0,0.211217]
[1734915040363,0.001,94695.0,94687.0,0.02140848]
[1734915040558,0.2112,94697.0,94687.0,0.02140848]
[1734915040761,0.023,94690.0,94687.0,0.02140848]
[1734915040990,0.023,94688.0,94687.0,0.02140848]
[1734915041213,0.12562861,94688.0,94687.0,0.02140848]
[1734915041941,0.12562861,94688.0,94680.0,0.0242489]
[1734915042146,0.023,94686.0,94680.0,0.0242489]
[1734915042333,0.12562868,94685.0,94680.0,0.0242489]
[1734915042631,0.33685468,94685.0,94680.0,0.0242489]
[1734915042901,0.3355344,94685.0,94680.0,0.000171]
[1734915043329,0.3355344,94685.0,94684.0,0.00162639]
[1734915043533,0.3355344,94685.0,94684.0,0.00062639]
[1734915043680,0.3355344,94685.0,94684.0,0.00262639]
[1734915044338,0.4146344,94685.0,94684.0,0.00262639]
[1734915044905,0.4643344,94685.0,94684.0,0.00262639]
[1734915045086,0.4643344,94685.0,94684.0,0.00062639]
[1734915045519,0.4643344,94685.0,94684.0,0.00162639]
[1734915045724,0.4643344,94685.0,94684.0,0.00062639]
[1734915046127,0.4166344,94685.0,94684.0,0.00062639]
[1734915046350,0.4146344,94685.0,94684.0,0.00062639]
[1734915046701,0.4196344,94685.0,94684.0,0.00162639]
[1734915047614,0.4146344,94685.0,94684.0,0.00062639]
[1734915047842,0.1,94678.0,94677.0,3.9e-07]
[1734915047992,0.3488,94676.0,94675.0,1.9e-07]
[1734915048351,0.5501084,94676.0,94675.0,1.9e-07]
[1734915048760,0.5501084,94676.0,94671.0,1.9e-07]
[1734915048761,0.123,94672.0,94671.0,1.9e-07]
[1734915048966,0.50032916,94672.0,94671.0,1.9e-07]
[1734915049115,0.4990084,94672.0,94671.0,1.9e-07]
[1734915050129,0.3990084,94672.0,94671.0,0.00100019]
[1734915050342,0.4040084,94672.0,94671.0,0.00100019]
[1734915056959,0.5040084,94672.0,94671.0,0.00100019]
[1734915058093,0.1,94666.0,94665.0,1.9e-07]
[1734915058258,0.1,94663.0,94662.0,1.9e-07]
[1734915058434,0.5539084,94663.0,94662.0,1.9e-07]
[1734915058923,0.7079,94652.0,94651.0,1.9e-07]
[1734915059123,0.7079,94652.0,94648.0,1.9e-07]
[1734915059124,0.273,94649.0,94648.0,1.9e-07]
[1734915059446,0.5529084,94649.0,94648.0,1.9e-07]
[1734915060179,0.5529084,94649.0,94648.0,0.00016226]
[1734915060347,0.5529084,94649.0,94648.0,2.6e-07]
[1734915061536,0.4529084,94649.0,94648.0,2.6e-07]
[1734915061814,0.5529084,94649.0,94648.0,2.6e-07]
[1734915062353,0.5619084,94649.0,94648.0,2.6e-07]
[1734915062846,0.5529084,94649.0,94648.0,2.6e-07]
[1734915063050,0.5619084,94649.0,94648.0,2.6e-07]
[1734915063204,0.58272845,94649.0,94648.0,2.6e-07]
[1734915063722,0.57372845,94649.0,94648.0,2.6e-07]
[1734915063923,0.58272845,94649.0,94648.0,2.6e-07]
[1734915064144,0.47372845,94649.0,94648.0,2.6e-07]
[1734915064378,0.45072845,94649.0,94648.0,2.6e-07]
[1734915064512,0.45072845,94649.0,94634.0,6e-08]
[1734915064513,0.3261,94635.0,94634.0,6e-08]
[1734915064715,0.211427,94595.0,94592.0,0.0764]
[1734915064956,0.3127354,94595.0,94594.0,0.00013964]
[1734915065681,0.3357354,94595.0,94594.0,0.00013964]
[1734915066679,0.3367354,94595.0,94594.0,0.00013964]
[1734915067033,0.4867354,94595.0,94594.0,0.00013964]
[1734915067240,0.86459254,94595.0,94594.0,5.404e-05]
[1734915067437,0.373,94590.0,94589.0,2.4e-07]
[1734915067640,0.5202084,94590.0,94589.0,4.5e-07]
[1734915068756,0.4202084,94590.0,94589.0,4.5e-07]
[1734915068927,0.5202084,94590.0,94589.0,4.5e-07]
[1734915069610,0.42003226,94590.0,94589.0,4.5e-07]
[1734915069813,0.42903226,94590.0,94589.0,4.5e-07]
[1734915070194,0.32903226,94590.0,94589.0,4.5e-07]
[1734915070450,0.42903226,94590.0,94589.0,4.5e-07]
[1734915071609,0.52903226,94590.0,94589.0,4.5e-07]
[1734915072060,0.52003226,94590.0,94589.0,4.5e-07]
[1734915072278,0.1,94584.0,94583.0,0.05874045]
[1734915072491,0.3756303,94584.0,94583.0,0.0589002]
[1734915072691,0.2,94577.0,94576.0,3.2e-07]
[1734915072894,0.32563069,94577.0,94576.0,3.2e-07]
[1734915073070,0.5966084,94577.0,94576.0,3.2e-07]
[1734915075279,0.61730426,94577.0,94576.0,3.2e-07]
[1734915075623,0.62630426,94577.0,94576.0,3.2e-07]
[1734915075820,0.61730426,94577.0,94576.0,3.2e-07]
[1734915076204,0.62630426,94577.0,94576.0,3.2e-07]
[1734915076401,0.71861266,94577.0,94576.0,3.2e-07]
[1734915076943,0.72761266,94577.0,94576.0,3.2e-07]
[1734915077727,0.311512,94557.0,94553.0,8.56e-05]
[1734915077969,0.7401204,94557.0,94553.0,8.56e-05]
[1734915078567,0.35,94554.0,94553.0,2e-07]
[1734915078783,0.4513084,94554.0,94553.0,8.9e-07]
[1734915079716,0.4743084,94554.0,94553.0,8.9e-07]
[1734915079914,0.3743084,94554.0,94553.0,8.9e-07]
[1734915080130,0.4743084,94554.0,94553.0,8.9e-07]
[1734915080646,0.40042747,94554.0,94553.0,8.9e-07]
[1734915081062,0.50042747,94554.0,94553.0,8.9e-07]
[1734915081449,0.50842747,94554.0,94553.0,8.9e-07]
[1734915081756,0.50042747,94554.0,94553.0,8.9e-07]
[1734915082163,0.50942747,94554.0,94553.0,8.9e-07]
[1734915082362,0.50042747,94554.0,94553.0,8.9e-07]
[1734915082870,0.50942747,94554.0,94553.0,8.9e-07]
[1734915084510,0.1,94544.0,94499.0,0.18763468]
[1734915084684,0.1,94551.0,94513.0,5.41e-05]
[1734915084685,0.023,94517.0,94513.0,5.41e-05]
[1734915084888,0.023,94515.0,94513.0,5.41e-05]
[1734915085100,0.02432261,94514.0,94513.0,5.41e-05]
[1734915086352,0.023,94514.0,94513.0,5.41e-05]
[1734915086518,0.023,94516.0,94513.0,5.41e-05]
[1734915086727,0.023,94514.0,94513.0,5.41e-05]
[1734915087536,0.1243084,94514.0,94513.0,5.41e-05]
[1734915087916,0.1253084,94514.0,94513.0,5.41e-05]
[1734915088324,0.1243084,94514.0,94513.0,0.0001398]
[1734915088527,0.1253084,94514.0,94513.0,0.0001398]
[1734915088928,0.1243084,94514.0,94513.0,0.0001398]
[1734915089177,0.1253084,94514.0,94513.0,0.0001398]
[1734915091257,0.12563137,94514.0,94513.0,0.0001398]
[1734915092070,0.37563137,94514.0,94513.0,0.0001398]
[1734915092413,0.4563084,94514.0,94513.0,0.0001398]
[1734915092616,0.63755337,94514.0,94513.0,8e-07]
[1734915092788,0.63755337,94514.0,94494.0,6e-07]
[1734915092789,0.716551,94495.0,94494.0,6e-07]
[1734915093034,0.716551,94495.0,94494.0,9.5e-07]
[1734915093035,0.8178594,94495.0,94494.0,9.5e-07]
[1734915093240,0.2,94486.0,94485.0,3.5e-07]
[1734915093448,0.2,94486.0,94429.0,0.211798]
[1734915093449,0.4532,94482.0,94481.0,9.5e-07]
[1734915093593,0.211776,94440.0,94429.0,0.07387185]
[1734915093789,0.00132367,94439.0,94430.0,0.12843416]
[1734915094040,0.15,94467.0,94443.0,0.211765]
[1734915094041,0.211721,94464.0,94443.0,0.211765]
[1734915094248,0.234725,94462.0,94443.0,0.211765]
[1734915094449,0.10263191,94461.0,94443.0,0.211765]
[1734915094594,0.10263191,94461.0,94436.0,0.211782]
[1734915094595,0.234729,94460.0,94436.0,0.211782]
[1734915094796,0.006,94440.0,94430.0,0.12843416]
[1734915095015,0.023,94456.0,94431.0,0.211794]
[1734915095238,0.023,94454.0,94432.0,0.32744]
[1734915095445,0.00132346,94453.0,94440.0,0.211774]
[1734915095828,0.00132346,94453.0,94446.0,0.21176]
[1734915096233,0.023,94453.0,94446.0,0.21176]
[1734915096434,0.023,94453.0,94445.0,0.02118654]
[1734915096877,0.00132346,94452.0,94445.0,0.02118654]
[1734915097083,0.00132346,94452.0,94430.0,0.34077207]
[1734915097260,0.1243084,94451.0,94431.0,0.156847]
[1734915097447,0.023,94449.0,94431.0,0.368639]
[1734915097641,0.023,94447.0,94433.0,0.21179]
[1734915097897,0.023,94445.0,94434.0,0.118038]
[1734915098070,0.023,94447.0,94431.0,0.211792]
[1734915098071,0.00132357,94459.0,94443.0,0.02100645]
[1734915098269,0.023,94457.0,94443.0,0.02100645]
[1734915098595,0.10263196,94456.0,94443.0,0.02100645]
[1734915098772,0.023,94448.0,94431.0,0.211792]
[1734915098970,0.023,94446.0,94431.0,0.423586]
[1734915099183,0.023,94446.0,94433.0,0.21179]
[1734915099767,0.00132357,94445.0,94438.0,0.02088569]
[1734915099894,0.00132357,94445.0,94430.0,0.00054191]
[1734915100104,0.00132357,94445.0,94431.0,0.211794]
[1734915100733,0.00132357,94445.0,94436.0,0.02171198]
[1734915101452,0.01032357,94445.0,94436.0,0.02171198]
[1734915101837,0.00132357,94445.0,94436.0,0.02171198]
[1734915102287,0.023,94444.0,94436.0,0.02171198]
[1734915102487,0.023,94442.0,94430.0,0.00054191]
[1734915102656,0.10263209,94441.0,94430.0,0.00054191]
[1734915102858,0.023,94440.0,94430.0,0.00054191]
[1734915103022,0.023,94437.0,94430.0,0.00054191]
[1734915103225,0.023,94435.0,94430.0,0.00054191]
[1734915103446,0.023,94433.0,94430.0,0.00054191]
[1734915103703,0.10263228,94432.0,94430.0,0.00054191]
[1734915104019,0.023,94431.0,94430.0,0.00054191]
[1734915104227,0.1243084,94431.0,94430.0,0.00054191]
[1734915105404,0.12563225,94431.0,94430.0,0.00054191]
[1734915105835,0.1243084,94431.0,94430.0,0.00054191]
[1734915107763,0.023,94431.0,94430.0,0.00054191]
[1734915107904,0.15,94455.0,94431.0,0.211794]
[1734915108117,0.31410049,94454.0,94430.0,0.00054191]
[1734915108326,0.5247944,94454.0,94430.0,0.00054191]
[1734915108536,0.211768,94443.0,94430.0,0.00054191]
[1734915108760,0.10263213,94442.0,94430.0,0.00054191]
[1734915109318,0.023,94441.0,94430.0,0.00054191]
[1734915109544,0.023,94439.0,94430.0,0.00054191]
[1734915109950,0.023,94439.0,94431.0,0.211794]
[1734915110150,0.023,94439.0,94430.0,0.00054191]
[1734915110377,0.023,94437.0,94430.0,0.00054191]
[1734915110595,0.10263213,94436.0,94430.0,0.00054191]
[1734915110905,0.023,94435.0,94430.0,0.00054191]
[1734915111124,0.023,94433.0,94430.0,0.00054191]
[1734915111325,0.023,94431.0,94430.0,0.00054191]
[1734915111465,0.1243084,94431.0,94430.0,0.00154191]
[1734915111869,0.023,94442.0,94430.0,0.00054191]
[1734915112073,0.023,94440.0,94430.0,0.00054191]
[1734915112280,0.023,94438.0,94430.0,0.00054191]
[1734915112600,0.1013084,94437.0,94430.0,0.00054191]
[1734915112798,0.02432374,94436.0,94430.0,0.00054191]
[1734915113023,0.1013084,94435.0,94430.0,0.00054191]
[1734915113222,0.00132374,94449.0,94430.0,0.00054191]
[1734915113426,0.1243084,94448.0,94430.0,0.00054191]
[1734915113634,0.023,94446.0,94437.0,0.21178]
[1734915113840,0.023,94444.0,94437.0,0.21178]
[1734915114032,0.1013084,94443.0,94430.0,0.08184191]
[1734915114263,0.00132366,94442.0,94430.0,0.00054191]
[1734915114463,0.10263206,94442.0,94430.0,0.00054191]
[1734915114908,0.10263206,94442.0,94431.0,0.211794]
[1734915115315,0.023,94441.0,94431.0,0.211794]
[1734915115545,0.023,94441.0,94431.0,0.206794]
[1734915117480,0.023,94441.0,94431.0,0.211794]
[1734915118116,0.00132366,94453.0,94437.0,0.21178]
[1734915118317,0.12563198,94452.0,94434.0,0.0482]
[1734915118773,0.12563198,94452.0,94430.0,0.00054191]
[1734915119501,0.12563198,94452.0,94431.0,0.211794]
[1734915119673,0.023,94450.0,94430.0,0.00054191]
[1734915119901,0.023,94448.0,94430.0,0.00054191]
[1734915120101,0.023,94446.0,94431.0,0.212794]
[1734915120215,0.023,94444.0,94431.0,0.212794]
[1734915120438,0.023,94442.0,94431.0,0.211794]
[1734915120638,0.023,94442.0,94430.0,0.12897607]
[1734915120845,0.023,94442.0,94431.0,0.132078]
[1734915121043,0.023,94450.0,94431.0,0.132078]
[1734915121274,0.023,94448.0,94441.0,0.02168685]
[1734915121622,0.023,94446.0,94441.0,0.02168685]
[1734915121830,0.023,94444.0,94441.0,0.02168685]
[1734915122045,0.023,94442.0,94430.0,0.00054191]
[1734915122260,0.023,94442.0,94440.0,0.02111017]
[1734915122686,0.023,94453.0,94440.0,0.02111017]
[1734915122886,0.023,94451.0,94440.0,0.02111017]
[1734915123169,0.10263197,94450.0,94440.0,0.02111017]
[1734915123366,0.023,94449.0,94440.0,0.02111017]
[1734915123574,0.10263197,94448.0,94440.0,0.02111017]
[1734915123782,0.023,94447.0,94440.0,0.02111017]
[1734915123930,0.00132357,94446.0,94440.0,0.02111017]
[1734915124133,0.023,94445.0,94440.0,0.02111017]
[1734915125014,0.00132357,94447.0,94440.0,0.02111017]
[1734915125121,0.0001716,94454.0,94442.0,0.0801]
[1734915125325,0.1013084,94453.0,94440.0,0.02111017]
[1734915125527,0.21175,94451.0,94440.0,0.02211017]
[1734915125800,0.10263195,94450.0,94440.0,0.02211017]
[1734915125947,0.10263195,94450.0,94440.0,0.02111017]
[1734915126356,0.023,94449.0,94440.0,0.02111017]
[1734915126549,0.1013084,94449.0,94440.0,0.02111017]
[1734915126780,0.02432355,94448.0,94440.0,0.02111017]
[1734915126990,0.234762,94446.0,94430.0,0.02401424]
[1734915127184,0.1305,94450.0,94430.0,0.02401424]
[1734915127185,0.023,94443.0,94430.0,0.02401424]
[1734915127410,0.211788,94434.0,94430.0,0.00054191]
[1734915127658,0.211792,94432.0,94430.0,0.00054191]
[1734915127784,0.20763227,94431.0,94430.0,0.00054191]
[1734915127988,0.2063084,94431.0,94430.0,0.00054191]
[1734915128625,0.2063084,94431.0,94430.0,0.00154191]
[1734915128986,0.2063084,94431.0,94430.0,0.00054191]
[1734915129391,0.023,94430.0,94408.0,0.10595919]
[1734915129617,0.023,94430.0,94408.0,0.02269271]
[1734915129618,0.023,94428.0,94408.0,0.02269271]
[1734915129817,0.023,94426.0,94405.0,0.211853]
[1734915130019,0.023,94424.0,94406.0,0.144096]
[1734915130216,0.023,94422.0,94405.0,0.211853]
[1734915130391,0.00132392,94421.0,94405.0,0.211853]
[1734915130605,0.023,94420.0,94405.0,0.211853]
[1734915130801,0.211774,94441.0,94410.0,0.12843416]
[1734915131013,0.023,94429.0,94421.0,0.15]
[1734915131217,0.00053858,94431.0,94422.0,0.833129]
[1734915131702,0.00053858,94431.0,94428.0,0.211799]
[1734915132877,0.00153858,94431.0,94428.0,0.211799]
[1734915133186,0.00053858,94431.0,94428.0,0.211799]
[1734915134252,0.00053858,94431.0,94430.0,0.211797]
[1734915134461,0.00153858,94431.0,94430.0,0.361797]
[1734915134665,0.00153858,94431.0,94430.0,0.468243]
[1734915134880,0.00053858,94431.0,94430.0,0.468243]
[1734915135081,0.10184698,94431.0,94428.0,0.02454311]
[1734915135234,0.10263222,94430.0,94428.0,0.02454311]
[1734915135410,0.10263222,94430.0,94428.0,0.02354311]
[1734915135777,0.023,94429.0,94420.0,0.211819]
[1734915135934,0.1013084,94429.0,94420.0,0.211819]
[1734915136114,0.023,94427.0,94419.0,0.02096448]
[1734915136315,0.1013084,94426.0,94419.0,0.02096448]
[1734915136516,0.023,94425.0,94420.0,0.211819]
[1734915136721,0.00053858,94431.0,94428.0,0.001]
[1734915136918,0.00053858,94431.0,94430.0,8.58e-05]
[1734915139474,0.00053858,94431.0,94430.0,0.0030858]
[1734915139681,0.00132371,94445.0,94430.0,8.58e-05]
[1734915139904,0.0001716,94450.0,94444.0,0.211765]
[1734915140258,0.0001716,94450.0,94437.0,0.21178]
[1734915140259,0.0014951,94450.0,94437.0,0.21178]
[1734915140459,0.00132357,94445.0,94437.0,0.423561]
[1734915140672,0.00149517,94450.0,94437.0,0.423561]
[1734915141077,0.023,94445.0,94437.0,0.423561]
[1734915141260,0.023,94445.0,94431.0,0.211794]
[1734915141261,0.023,94445.0,94443.0,0.211766]
[1734915142562,0.025,94445.0,94443.0,0.211766]
[1734915142766,0.0001716,94450.0,94443.0,0.211766]
[1734915143237,0.0001716,94450.0,94443.0,0.213766]
[1734915143777,0.0001716,94450.0,94444.0,0.348903]
[1734915143977,0.0001716,94450.0,94445.0,0.361763]
[1734915144177,0.0001716,94450.0,94445.0,1.37376416]
[1734915144423,0.0001716,94450.0,94445.0,0.77675016]
[1734915145097,0.0001716,94450.0,94445.0,0.57661216]
[1734915145935,0.021,94446.0,94445.0,0.58261216]
[1734915146164,0.0001716,94450.0,94449.0,0.311754]
[1734915146369,0.0798,94482.0,94457.0,0.12843416]
[1734915146571,0.0013231,94480.0,94477.0,0.211689]
[1734915146731,0.0001616,94480.0,94477.0,0.211689]
[1734915147731,0.0001616,94480.0,94470.0,0.211706]
[1734915147975,0.1013084,94479.0,94464.0,0.211719]
[1734915148188,0.0766232,94478.0,94464.0,0.423439]
[1734915148404,0.1013084,94477.0,94474.0,0.02134161]
[1734915148552,0.00132318,94476.0,94474.0,0.02134161]
[1734915148763,0.1013084,94475.0,94474.0,0.02134161]
[1734915148971,0.1243084,94475.0,94474.0,0.02134161]
[1734915149356,0.023,94474.0,94467.0,0.09500118]
[1734915149569,0.023,94472.0,94464.0,0.56223877]
[1734915149981,0.023,94472.0,94464.0,0.41973699]
[1734915151184,0.023,94470.0,94464.0,0.41973699]
[1734915151553,0.023,94471.0,94464.0,0.20801699]
[1734915152302,0.023,94471.0,94464.0,0.20901699]
[1734915152537,0.023,94471.0,94464.0,0.42073599]
[1734915152751,0.023,94471.0,94469.0,0.02120596]
[1734915153341,0.023,94471.0,94464.0,0.03029681]
[1734915153565,0.023,94471.0,94464.0,0.001]
[1734915153915,0.069,94469.0,94464.0,0.001]
[1734915154165,0.211716,94466.0,94464.0,0.001]
[1734915154356,0.12563178,94465.0,94464.0,0.001]
[1734915154558,0.023,94457.0,94440.0,0.23679973]
[1734915154757,0.211743,94454.0,94440.0,0.23679973]
[1734915154915,0.023,94452.0,94442.0,0.14250178]
[1734915155120,0.10263197,94451.0,94442.0,0.14250178]
[1734915155316,0.023,94450.0,94442.0,0.14250178]
[1734915155631,0.10263197,94449.0,94442.0,0.14250178]
[1734915155857,0.023,94448.0,94442.0,0.14250178]
[1734915156184,0.10263201,94447.0,94434.0,0.211786]
[1734915156318,0.023,94446.0,94442.0,0.003]
[1734915156522,0.211747,94452.0,94442.0,0.003]
[1734915156523,0.234765,94444.0,94442.0,0.003]
[1734915156727,0.20893221,94443.0,94442.0,0.003]
[1734915156951,0.2076084,94443.0,94442.0,0.003]
[1734915157889,0.023,94442.0,94430.0,8.58e-05]
[1734915158088,0.317994,94431.0,94430.0,8.58e-05]
[1734915158317,0.4193024,94431.0,94430.0,8.58e-05]
[1734915159477,0.023,94430.0,94408.0,0.1500858]
[1734915159685,0.234801,94428.0,94418.0,0.00053858]
[1734915159984,0.023,94426.0,94418.0,0.00053858]
[1734915160202,0.023,94424.0,94418.0,0.00053858]
[1734915160405,0.10263232,94423.0,94418.0,0.00053858]
[1734915160671,0.023,94422.0,94418.0,0.02209525]
[1734915160889,0.023,94420.0,94418.0,0.00053858]
[1734915161090,0.33745352,94419.0,94418.0,0.00053858]
[1734915161250,0.3361294,94419.0,94418.0,0.00053858]
[1734915161424,0.3261294,94419.0,94418.0,0.00053858]
[1734915162444,0.3261294,94419.0,94418.0,0.00253858]
[1734915163485,0.3261294,94419.0,94418.0,0.00262438]
[1734915167813,0.6045294,94419.0,94418.0,0.00262438]
[1734915168218,0.293744,94409.0,94408.0,8.58e-05]
[1734915168457,0.293744,94409.0,94368.0,0.35443678]
[1734915168458,0.363282,94392.0,94368.0,0.14250178]
[1734915168663,0.4645904,94392.0,94369.0,0.02571155]
[1734915168831,0.4645904,94392.0,94368.0,0.14250178]
[1734915169234,0.46443018,94392.0,94373.0,0.02476142]
[1734915169433,0.46443018,94392.0,94368.0,0.14250178]
[1734915169636,0.3849,94384.0,94359.0,0.09490781]
[1734915169836,0.4862084,94384.0,94359.0,0.09490781]
[1734915170162,0.4862084,94384.0,94359.0,0.30686281]
[1734915170969,0.4862084,94384.0,94359.0,0.09490781]
[1734915171129,0.5862084,94384.0,94359.0,0.09490781]
[1734915171336,0.6862084,94384.0,94356.0,0.02494385]
[1734915171539,0.7384084,94384.0,94356.0,0.02494385]
[1734915171841,0.6354084,94384.0,94356.0,0.02494385]
[1734915172017,0.5354084,94384.0,94356.0,0.02494385]
[1734915172230,0.5444084,94384.0,94383.0,0.01402648]
[1734915172430,0.6201084,94384.0,94383.0,0.01302648]
[1734915172638,0.4701084,94384.0,94383.0,0.01302648]
[1734915173259,0.4701084,94384.0,94383.0,0.01402648]
[1734915173430,0.4791084,94384.0,94383.0,0.01402648]
[1734915174418,0.023,94372.0,94356.0,0.20393247]
[1734915174624,0.023,94370.0,94356.0,0.1846277]
[1734915174800,0.023,94368.0,94356.0,0.18366187]
[1734915175003,0.1026332,94367.0,94356.0,0.18366187]
[1734915175255,0.023,94366.0,94356.0,0.18366187]
[1734915175461,0.023,94364.0,94356.0,0.18366187]
[1734915175666,0.023,94362.0,94356.0,0.18366187]
[1734915175891,0.023,94360.0,94356.0,0.39562487]
[1734915176092,0.023,94362.0,94356.0,0.39562487]
[1734915176295,0.0001614,94364.0,94356.0,0.39562487]
[1734915176446,0.023,94362.0,94361.0,0.21195]
[1734915176870,0.0001614,94364.0,94361.0,0.21195]
[1734915177099,0.023,94362.0,94361.0,0.21195]
[1734915177279,0.0001614,94364.0,94361.0,0.21195]
[1734915177434,0.00132447,94395.0,94366.0,0.21194]
[1734915177639,0.1013084,94394.0,94389.0,0.211887]
[1734915177873,0.00132432,94393.0,94377.0,0.211914]
[1734915178217,0.1013084,94392.0,94371.0,0.15]
[1734915178414,0.0013244,94391.0,94378.0,0.211912]
[1734915178625,0.1013084,94390.0,94378.0,0.211912]
[1734915178969,0.0013244,94389.0,94378.0,0.423825]
[1734915179168,0.1013084,94388.0,94383.0,0.2119]
[1734915179364,0.023,94387.0,94383.0,0.2119]
[1734915179588,0.023,94387.0,94328.0,0.212025]
[1734915179589,0.023,94387.0,94379.0,0.21191]
[1734915179791,0.02432439,94387.0,94373.0,0.15]
[1734915180152,0.023,94387.0,94381.0,0.211905]
[1734915180530,0.12563279,94387.0,94381.0,0.423811]
[1734915181127,0.023,94385.0,94369.0,0.211932]
[1734915181300,0.023,94383.0,94375.0,0.02083616]
[1734915181531,0.023,94381.0,94377.0,0.211916]
[1734915181734,0.023,94383.0,94377.0,0.423832]
[1734915182717,0.023,94383.0,94377.0,0.425832]
[1734915183951,0.023,94383.0,94377.0,0.213916]
[1734915184162,0.023,94383.0,94377.0,0.425832]
[1734915184562,0.023,94383.0,94377.0,0.423832]
[1734915184888,0.023,94383.0,94377.0,0.424832]
[1734915185097,0.023,94381.0,94377.0,0.001]
[1734915185310,0.310011,94379.0,94377.0,0.001]
[1734915185516,0.17473311,94378.0,94377.0,0.001]
[1734915186072,0.023,94377.0,94365.0,0.02541157]
[1734915186275,0.023,94370.0,94357.0,0.02078598]
[1734915186663,0.1013084,94369.0,94363.0,0.211946]
[1734915186817,0.023,94368.0,94363.0,0.211946]
[1734915187017,0.1013084,94367.0,94363.0,0.211946]
[1734915187233,0.023,94366.0,94363.0,0.423892]
[1734915187400,0.00132469,94377.0,94363.0,0.211946]
[1734915187598,0.023,94375.0,94370.0,0.211929]
[1734915187786,0.023,94373.0,94370.0,0.211929]
[1734915187985,0.12563299,94373.0,94364.0,0.211945]
[1734915188251,0.12563299,94373.0,94369.0,0.211932]
[1734915188671,0.12563299,94373.0,94367.0,8.58e-05]
[1734915189116,0.12563299,94373.0,94368.0,0.211936]
[1734915189457,0.12763299,94373.0,94368.0,0.211936]
[1734915189879,0.12563299,94373.0,94368.0,0.211936]
[1734915190890,0.12563299,94373.0,94368.0,0.423872]
[1734915191102,0.023,94377.0,94367.0,8.58e-05]
[1734915191304,0.002,94373.0,94369.0,0.423868]
[1734915191508,0.023,94372.0,94367.0,8.58e-05]
[1734915191878,0.023,94375.0,94367.0,0.23719499]